fUSD/lending_fUSD_20250619
["ID","MTS","AMOUNT","RATE_DAILY","PERIOD"]
[366500417,1750293045051,-2000.0,0.00032,2]
[366500418,1750293045060,-2000.0,0.00032,2]
[366500419,1750293045070,-2000.0,0.00032,2]
[366500420,1750293045080,-4000.0,0.00032,4]
[366500421,1750293045090,-201.0,0.00032026,15]
[366500422,1750293045100,-153.5,0.00032094,2]
[366500423,1750293045110,-5795.93,0.000321,2]
[366500424,1750293045120,-1865.48533775,0.00032141,26]
[366500425,1750293045129,-278.0,0.00032173,2]
[366500426,1750293045139,-868.48676193,0.00032386,2]
[366500427,1750293045148,-150.0,0.00032415,2]
[366500428,1750293045158,-31759.27340935,0.00032419,2]
[366500429,1750293045168,-2758.53,0.000325,2]
[366500430,1750293045178,-7632.3843,0.00032598,2]
[366500431,1750293045188,-500.0,0.00032598,2]
[366500432,1750293045197,-500.0,0.00032598,2]
[366500433,1750293045207,-500.0,0.00032598,2]
[366500434,1750293045216,-500.0,0.00032598,2]
[366500435,1750293045226,-500.0,0.00032598,2]
[366500436,1750293045236,-500.0,0.00032598,2]
[366500437,1750293045246,-519.0,0.00032598,2]
[366500438,1750293045255,-278.0,0.00032649,2]
[366500439,1750293045265,-400.0,0.0003267,2]
[366500440,1750293045275,-400.0,0.0003267,2]
[366500441,1750293045284,-538.2602,0.00032676,2]
[366500442,1750293045294,-500.0,0.00032676,2]
[366500443,1750293045304,-150.0,0.00032676,2]
[366500444,1750293045315,-150.0,0.00032676,2]
[366500445,1750293045325,-500.0,0.00032676,2]
[366500446,1750293045335,-500.0,0.00032676,2]
[366500447,1750293045344,-150.0,0.00032676,2]
[366500448,1750293045354,-500.0,0.00032676,2]
[366500449,1750293045364,-156.54496774,0.00032676,2]
[366500450,1750293045374,-150.0,0.00032676,2]
[366500451,1750293045384,-150.0,0.00032676,2]
[366500452,1750293045394,-150.0,0.00032676,2]
[366500453,1750293045403,-150.0,0.00032676,2]
[366500454,1750293045413,-278.0,0.00032677,2]
[366500455,1750293045422,-2000.0,0.00032699,2]
[366500456,1750293045432,-490.0,0.000327,2]
[366500457,1750293045441,-490.0,0.000327,2]
[366500458,1750293045451,-490.0,0.000327,2]
[366500459,1750293045460,-119770.97,0.000327,7]
[366500460,1750293045470,-3793.05,0.000327,4]
[366500461,1750293045480,-500.0,0.00032703,2]
[366500462,1750293045489,-150.0,0.00032703,2]
[366500463,1750293045500,-150.64069793,0.00032703,2]
[366500464,1750293045510,-500.0,0.00032703,2]
[366500465,1750293045519,-500.0,0.00032703,2]
[366500466,1750293045529,-150.0,0.00032703,2]
[366500467,1750293045538,-500.0,0.00032703,2]
[366500468,1750293045548,-152.00200806,0.00032703,2]
[366500469,1750293045558,-155.77007956,0.00032703,2]
[366500470,1750293045567,-150.0,0.00032703,2]
[366500471,1750293045577,-150.0,0.00032703,2]
[366500472,1750293045586,-150.0,0.00032719,2]
[366500473,1750293045688,-500.0,0.00032731,2]
[366500474,1750293045699,-150.0,0.00032731,2]
[366500475,1750293045710,-500.0,0.00032731,2]
[366500476,1750293045720,-500.0,0.00032731,2]
[366500477,1750293045730,-201.21113638,0.00032731,2]
[366500478,1750293045742,-600.0,0.00032731,2]
[366500479,1750293045751,-150.0,0.00032736,2]
[366500480,1750293045761,-26873.24885595,0.0003274,2]
[366500481,1750293045771,-9413.0941731,0.00032743,2]
[366500482,1750293045781,-217481.9784372,0.00032743,2]
[366500483,1750293045790,-151.0,0.00032743,7]
[366500484,1750293045800,-151.0,0.00032743,7]
[366500485,1750293045809,-151.0,0.00032743,7]
[366500488,1750293045819,-5000.0,0.00032745,2]
[366500491,1750293045829,-472.7714,0.00032745,3]
[366500493,1750293045838,-200.0,0.00032746,2]
[366500495,1750293045847,-1000.0,0.00032746,2]
[366500496,1750293045857,-815.26906002,0.00032746,2]
[366500497,1750293045867,-150.0,0.00032746,2]
[366500499,1750293045876,-150.0,0.00032746,2]
[366500501,1750293045886,-2333.33333,0.00032746,2]
[366500502,1750293045895,-151.0,0.00032746,2]
[366500503,1750293045906,-1157.78650742,0.00032746,2]
[366500504,1750293045915,-345.30924979,0.00032746,2]
[366500505,1750293045925,-200.0,0.00032746,2]
[366500506,1750293045934,-151.0,0.00032746,7]
[366500507,1750293045944,-151.0,0.00032746,7]
[366500508,1750293045954,-151.0,0.00032746,7]
[366500509,1750293045964,-1198.0,0.00032746,7]
[366500510,1750293045973,-151.0,0.00032746,7]
[366500511,1750293045983,-1198.0,0.00032746,7]
[366500512,1750293045992,-151.0,0.00032746,7]
[366500513,1750293046002,-1198.0,0.00032746,7]
[366500514,1750293046011,-151.0,0.00032746,7]
[366500515,1750293046022,-154.0,0.00032746,7]
[366500516,1750293046031,-1198.0,0.00032746,7]
[366500517,1750293046041,-151.0,0.00032746,7]
[366500518,1750293046050,-154.50125075,0.00032746,7]
[366500519,1750293046059,-1198.0,0.00032746,7]
[366500520,1750293046069,-151.0,0.00032746,7]
[366500521,1750293046079,-1198.0,0.00032746,7]
[366500522,1750293046098,-151.0,0.00032746,7]
[366500523,1750293046109,-151.0,0.00032746,7]
[366500524,1750293046119,-739.65168271,0.00032746,7]
[366500525,1750293046129,-151.0,0.00032746,7]
[366500526,1750293046138,-151.0,0.00032746,7]
[366500527,1750293046149,-151.0,0.00032746,7]
[366500528,1750293046159,-151.0,0.00032746,7]
[366500529,1750293046169,-151.0,0.00032746,7]
[366500530,1750293046179,-151.0,0.00032746,7]
[366500531,1750293046191,-151.0,0.00032746,7]
[366500532,1750293046201,-151.0,0.00032746,7]
[366500533,1750293046211,-151.0,0.00032746,7]
[366500534,1750293046221,-151.0,0.00032746,7]
[366500535,1750293046231,-151.0,0.00032746,7]
[366500536,1750293046242,-151.0,0.00032746,7]
[366500537,1750293046252,-151.0,0.00032746,7]
[366500538,1750293046262,-246.28090222,0.00032746,7]
[366500539,1750293046272,-166.0,0.00032746,7]
[366500540,1750293046282,-166.0,0.00032746,7]
[366500541,1750293046291,-166.0,0.00032746,7]
[366500542,1750293046301,-172.0,0.00032746,7]
[366500543,1750293046311,-161.22307582,0.00032749,4]
[366500544,1750293046321,-151.0,0.00032756,7]
[366500545,1750293046331,-151.0,0.00032756,7]
[366500546,1750293046341,-151.0,0.00032756,7]
[366500547,1750293046352,-151.0,0.00032756,7]
[366500548,1750293046361,-151.0,0.00032756,7]
[366500549,1750293046371,-358.18883107,0.00032756,4]
[366500550,1750293046381,-206.02997179,0.00032756,4]
[366500551,1750293046390,-150.0,0.00032756,4]
[366500552,1750293046400,-150.0,0.00032756,4]
[366500553,1750293046410,-150.0,0.00032756,4]
[366500554,1750293046419,-150.0,0.00032756,4]
[366500555,1750293046430,-150.0,0.00032756,4]
[366500556,1750293046440,-150.0,0.00032756,4]
[366500557,1750293046451,-150.0,0.00032756,4]
[366500558,1750293046461,-150.0,0.00032756,4]
[366500559,1750293046471,-150.0,0.00032756,4]
[366500560,1750293046480,-150.0,0.00032756,4]
[366500561,1750293046490,-6999.51221417,0.00032756,2]
[366500562,1750293046500,-500.0,0.00032758,2]
[366500563,1750293046510,-150.0,0.00032758,2]
[366500564,1750293046519,-500.0,0.00032758,2]
[366500565,1750293046534,-500.0,0.00032758,2]
[366500566,1750293046544,-278.0,0.0003276,2]
[366500567,1750293046554,-488.28049327,0.00032766,2]
[366500568,1750293046564,-150.0,0.00032773,2]
[366500569,1750293046575,-833.92080167,0.00032776,3]
[366500570,1750293046585,-150.0,0.00032783,4]
[366500571,1750293046595,-150.0,0.00032783,4]
[366500572,1750293046605,-208.91541108,0.00032783,4]
[366500573,1750293046615,-150.0,0.00032783,4]
[366500574,1750293046625,-150.0,0.00032783,4]
[366500575,1750293046635,-150.0,0.00032783,4]
[366500576,1750293046647,-500.0,0.00032786,2]
[366500577,1750293046656,-202.25101604,0.00032786,2]
[366500578,1750293046666,-500.0,0.00032786,2]
[366500579,1750293046677,-500.0,0.00032786,2]
[366500580,1750293046687,-600.0,0.000328,11]
[366500581,1750293046700,-150.0,0.00032801,2]
[366500582,1750293046710,-150.52207526,0.00032811,4]
[366500583,1750293046721,-251.37534164,0.00032811,4]
[366500584,1750293046731,-161.4634626,0.00032811,4]
[366500585,1750293046743,-150.0,0.00032811,4]
[366500586,1750293046753,-450.0,0.00032813,2]
[366500587,1750293046763,-500.0,0.00032813,2]
[366500588,1750293046774,-500.0,0.00032813,2]
[366500589,1750293046784,-151.0,0.00032825,7]
[366500590,1750293046795,-151.205513,0.00032825,7]
[366500591,1750293046804,-190.72920073,0.00032828,2]
[366500592,1750293046814,-1865.48533775,0.00032831,27]
[366500593,1750293046824,-47377.47524553,0.00032836,10]
[366500594,1750293046834,-201.932627,0.00032836,7]
[366500595,1750293046844,-151.0,0.00032836,7]
[366500596,1750293046854,-151.0,0.00032836,7]
[366500597,1750293046865,-151.0,0.00032836,7]
[366500598,1750293046876,-151.0,0.00032836,7]
[366500599,1750293046886,-151.0,0.00032836,7]
[366500600,1750293046896,-151.0,0.00032836,7]
[366500601,1750293046906,-151.0,0.00032836,7]
[366500602,1750293046916,-151.0,0.00032836,7]
[366500603,1750293046927,-180.535539,0.00032836,7]
[366500604,1750293046936,-180.535539,0.00032836,7]
[366500605,1750293046947,-833.92080167,0.0003284,7]
[366500606,1750293046958,-553.05246388,0.0003284,2]
[366500607,1750293046972,-500.0,0.0003284,2]
[366500608,1750293046983,-278.0,0.00032842,2]
[366500609,1750293046993,-151.0,0.00032845,7]
[366500610,1750293047003,-151.0,0.00032845,7]
[366500611,1750293047014,-152.385546,0.00032845,7]
[366500612,1750293047024,-151.0,0.00032845,7]
[366500613,1750293047034,-151.0,0.00032845,7]
[366500614,1750293047044,-151.0,0.00032845,7]
[366500615,1750293047054,-180.535539,0.00032845,7]
[366500616,1750293047064,-180.535539,0.00032845,7]
[366500617,1750293047074,-233.0,0.00032855,5]
[366500618,1750293047084,-368195.91306522,0.00032856,2]
[366500619,1750293047094,-151.0,0.00032856,7]
[366500620,1750293047104,-291.744244,0.00032856,7]
[366500621,1750293047114,-151.0,0.00032856,7]
[366500622,1750293047123,-151.0,0.00032856,7]
[366500623,1750293047134,-151.0,0.00032856,7]
[366500624,1750293047144,-151.0,0.00032856,7]
[366500625,1750293047157,-170.96478,0.00032856,7]
[366500626,1750293047167,-151.0,0.00032856,7]
[366500627,1750293047177,-151.0,0.00032856,7]
[366500628,1750293047188,-151.056169,0.00032856,7]
[366500629,1750293047199,-159.082372,0.00032856,7]
[366500630,1750293047209,-151.0,0.00032856,7]
[366500631,1750293047220,-151.0,0.00032856,7]
[366500632,1750293047230,-151.0,0.00032856,7]
[366500633,1750293047241,-151.0,0.00032856,7]
[366500634,1750293047252,-151.0,0.00032856,7]
[366500635,1750293047262,-151.0,0.00032856,7]
[366500636,1750293047273,-151.0,0.00032856,7]
[366500637,1750293047283,-151.0,0.00032856,7]
[366500638,1750293047293,-151.0,0.00032856,7]
[366500639,1750293047303,-151.0,0.00032856,7]
[366500640,1750293047313,-151.0,0.00032856,7]
[366500641,1750293047323,-151.0,0.00032856,7]
[366500642,1750293047333,-151.0,0.00032856,7]
[366500643,1750293047343,-151.0,0.00032856,7]
[366500644,1750293047353,-234.130045,0.00032856,7]
[366500645,1750293047363,-180.535539,0.00032856,7]
[366500646,1750293047374,-180.535539,0.00032856,7]
[366500647,1750293047384,-150.0,0.00032865,2]
[366500648,1750293047395,-151.0,0.00032865,7]
[366500649,1750293047409,-151.0,0.00032865,7]
[366500650,1750293047419,-151.0,0.00032865,7]
[366500651,1750293047429,-161.306628,0.00032865,7]
[366500652,1750293047439,-151.0,0.00032865,7]
[366500653,1750293047449,-151.0,0.00032865,7]
[366500654,1750293047459,-151.0,0.00032865,7]
[366500655,1750293047469,-151.0,0.00032865,7]
[366500656,1750293047479,-151.0,0.00032865,7]
[366500657,1750293047489,-151.0,0.00032865,7]
[366500658,1750293047500,-151.0,0.00032865,7]
[366500659,1750293047510,-151.0,0.00032866,7]
[366500660,1750293047520,-151.0,0.00032866,7]
[366500661,1750293047530,-151.0,0.00032866,7]
[366500662,1750293047540,-151.0,0.00032866,7]
[366500663,1750293047551,-151.0,0.00032866,7]
[366500664,1750293047561,-151.0,0.00032866,7]
[366500665,1750293047571,-151.0,0.00032866,7]
[366500666,1750293047581,-151.0,0.00032866,7]
[366500667,1750293047591,-151.0,0.00032866,7]
[366500668,1750293047601,-151.0,0.00032866,7]
[366500669,1750293047611,-151.0,0.00032866,7]
[366500670,1750293047621,-151.0,0.00032866,7]
[366500671,1750293047631,-151.0,0.00032866,7]
[366500672,1750293047642,-151.0,0.00032866,7]
[366500673,1750293047653,-151.390351,0.00032866,7]
[366500674,1750293047663,-151.0,0.00032866,7]
[366500675,1750293047673,-151.0,0.00032866,7]
[366500676,1750293047683,-151.0,0.00032866,7]
[366500677,1750293047692,-151.0,0.00032866,7]
[366500678,1750293047707,-151.0,0.00032866,7]
[366500679,1750293047717,-151.0,0.00032866,7]
[366500680,1750293047727,-151.0,0.00032866,7]
[366500681,1750293047737,-151.0,0.00032866,7]
[366500682,1750293047749,-151.0,0.00032866,7]
[366500683,1750293047759,-151.0,0.00032866,7]
[366500684,1750293047771,-151.0,0.00032866,7]
[366500685,1750293047780,-151.0,0.00032866,7]
[366500686,1750293047791,-151.0,0.00032866,7]
[366500687,1750293047801,-151.746553,0.00032866,7]
[366500688,1750293047811,-151.0,0.00032866,7]
[366500689,1750293047821,-218.083417,0.00032866,7]
[366500690,1750293047831,-218.083417,0.00032866,7]
[366500691,1750293047841,-151.0,0.00032866,7]
[366500692,1750293047850,-151.0,0.00032866,7]
[366500693,1750293047861,-151.0,0.00032866,7]
[366500694,1750293047871,-151.0,0.00032866,7]
[366500695,1750293047881,-175.367147,0.00032866,7]
[366500696,1750293047891,-175.367147,0.00032866,7]
[366500697,1750293047901,-151.0,0.00032866,7]
[366500698,1750293047911,-151.0,0.00032866,7]
[366500699,1750293047920,-180.535539,0.00032866,7]
[366500700,1750293047930,-180.535539,0.00032866,7]
[366500701,1750293047940,-151.0,0.00032866,7]
[366500702,1750293047950,-354.7,0.00032867,2]
[366500703,1750293047960,-500.0,0.00032868,2]
[366500704,1750293047969,-500.0,0.00032873,5]
[366500705,1750293047979,-500.0,0.00032873,5]
[366500706,1750293047988,-500.32059706,0.00032873,3]
[366500707,1750293047999,-500.0,0.00032873,5]
[366500708,1750293048009,-160.11499773,0.00032873,5]
[366500709,1750293048019,-360.87053316,0.00032873,5]
[366500710,1750293048029,-160.11347291,0.00032873,5]
[366500711,1750293048039,-322.44831559,0.00032873,5]
[366500712,1750293048050,-160.11466179,0.00032873,5]
[366500713,1750293048060,-160.10906648,0.00032873,5]
[366500714,1750293048070,-160.11253353,0.00032873,5]
[366500715,1750293048080,-160.07754033,0.00032873,5]
[366500716,1750293048090,-198.55258671,0.00032873,5]
[366500717,1750293048100,-160.11454461,0.00032873,5]
[366500718,1750293048111,-159.93564001,0.00032873,5]
[366500719,1750293048121,-160.11282226,0.00032873,5]
[366500720,1750293048130,-500.0,0.00032873,5]
[366500721,1750293048140,-318.73970957,0.00032875,10]
[366500722,1750293048150,-300.0,0.00032875,10]
[366500723,1750293048160,-321.28315356,0.00032875,10]
[366500724,1750293048170,-300.0,0.00032875,10]
[366500725,1750293048180,-300.0,0.00032875,10]
[366500726,1750293048191,-5499.29723856,0.00032876,2]
[366500727,1750293048201,-151.0,0.00032876,7]
[366500728,1750293048211,-151.0,0.00032876,7]
[366500729,1750293048230,-151.0,0.00032876,7]
[366500730,1750293048242,-151.513633,0.00032876,7]
[366500731,1750293048252,-458.694562,0.00032876,18]
[366500732,1750293048263,-243.065575,0.00032876,18]
[366500733,1750293048274,-199.036576,0.00032876,18]
[366500734,1750293048284,-161.313857,0.00032876,18]
[366500735,1750293048294,-151.0,0.00032876,7]
[366500736,1750293048305,-151.0,0.00032876,7]
[366500737,1750293048315,-151.0,0.00032876,7]
[366500738,1750293048325,-151.0,0.00032876,7]
[366500739,1750293048336,-151.0,0.00032876,7]
[366500740,1750293048346,-247.09617,0.00032876,7]
[366500741,1750293048357,-151.0,0.00032876,7]
[366500742,1750293048368,-151.0,0.00032876,7]
[366500743,1750293048379,-151.0,0.00032876,7]
[366500744,1750293048390,-151.0,0.00032876,7]
[366500745,1750293048400,-151.0,0.00032876,7]
[366500746,1750293048411,-151.0,0.00032876,7]
[366500747,1750293048422,-189.427194,0.00032876,7]
[366500748,1750293048433,-151.0,0.00032876,7]
[366500749,1750293048443,-171.656985,0.00032876,7]
[366500750,1750293048454,-151.0,0.00032876,7]
[366500751,1750293048464,-151.0,0.00032876,7]
[366500752,1750293048474,-151.0,0.00032876,7]
[366500753,1750293048484,-151.0,0.00032876,7]
[366500754,1750293048494,-151.0,0.00032876,7]
[366500755,1750293048505,-151.0,0.00032876,7]
[366500756,1750293048515,-151.0,0.00032876,7]
[366500757,1750293048525,-151.0,0.00032876,7]
[366500758,1750293048535,-319.48378047,0.00032876,18]
[366500759,1750293048545,-490.0,0.00032876,18]
[366500760,1750293048555,-473.53500486,0.00032876,18]
[366500761,1750293048565,-491.96515551,0.00032876,18]
[366500762,1750293048575,-490.0,0.00032876,18]
[366500763,1750293048585,-490.0,0.00032876,18]
[366500764,1750293048595,-490.0,0.00032876,18]
[366500765,1750293048606,-490.0,0.00032876,18]
[366500766,1750293048616,-151.0,0.00032876,7]
[366500767,1750293048627,-151.0,0.00032876,7]
[366500768,1750293048637,-491.9997413,0.00032876,18]
[366500769,1750293048647,-492.18346829,0.00032876,18]
[366500770,1750293048658,-151.0,0.00032876,7]
[366500771,1750293048667,-505.71791875,0.00032876,18]
[366500772,1750293048678,-501.77936621,0.00032876,18]
[366500773,1750293048688,-490.0,0.00032876,18]
[366500774,1750293048701,-490.23683139,0.00032876,18]
[366500775,1750293048713,-490.0,0.00032876,18]
[366500776,1750293048723,-151.0,0.00032876,7]
[366500777,1750293048734,-151.0,0.00032876,7]
[366500778,1750293048746,-151.0,0.00032876,7]
[366500779,1750293048756,-151.0,0.00032876,7]
[366500780,1750293048767,-464.91775848,0.00032876,18]
[366500781,1750293048778,-491.80152409,0.00032876,18]
[366500782,1750293048789,-490.0,0.00032876,18]
[366500783,1750293048799,-492.27917905,0.00032876,18]
[366500784,1750293048810,-463.23144485,0.00032876,18]
[366500785,1750293048820,-491.73835565,0.00032876,18]
[366500786,1750293048830,-490.0,0.00032876,18]
[366500787,1750293048840,-490.0,0.00032876,18]
[366500788,1750293048850,-491.67683862,0.00032876,18]
[366500789,1750293048860,-491.14956107,0.00032876,18]
[366500790,1750293048870,-490.0,0.00032876,18]
[366500791,1750293048880,-172.265441,0.00032876,18]
[366500792,1750293048890,-491.13887355,0.00032876,18]
[366500793,1750293048900,-490.0,0.00032876,18]
[366500794,1750293048910,-490.0,0.00032876,18]
[366500795,1750293048920,-161.17216121,0.00032876,18]
[366500796,1750293048930,-490.96432393,0.00032876,18]
[366500797,1750293048940,-237.492845,0.00032876,18]
[366500798,1750293048950,-492.33227497,0.00032876,18]
[366500799,1750293048961,-490.0,0.00032876,18]
[366500800,1750293048971,-151.0,0.00032876,7]
[366500801,1750293048981,-491.59853252,0.00032876,18]
[366500802,1750293048991,-491.92330199,0.00032876,18]
[366500803,1750293049001,-490.0,0.00032876,18]
[366500804,1750293049011,-490.0,0.00032876,18]
[366500805,1750293049021,-258.46895642,0.00032876,18]
[366500806,1750293049031,-492.18319649,0.00032876,18]
[366500807,1750293049041,-490.27094623,0.00032876,18]
[366500808,1750293049050,-490.0,0.00032876,18]
[366500809,1750293049060,-151.0,0.00032876,7]
[366500810,1750293049070,-151.0,0.00032876,7]
[366500811,1750293049080,-490.0,0.00032876,18]
[366500812,1750293049090,-334.64043105,0.00032876,18]
[366500813,1750293049100,-493.30884216,0.00032876,18]
[366500814,1750293049110,-699.48,0.00032876,18]
[366500815,1750293049120,-490.0,0.00032876,18]
[366500816,1750293049130,-395.03572856,0.00032876,18]
[366500817,1750293049139,-490.0,0.00032876,18]
[366500818,1750293049150,-853.22,0.00032876,18]
[366500819,1750293049160,-490.0,0.00032876,18]
[366500820,1750293049170,-490.0,0.00032876,18]
[366500821,1750293049180,-490.0,0.00032876,18]
[366500822,1750293049190,-495.8484429,0.00032876,18]
[366500823,1750293049201,-490.0,0.00032876,18]
[366500824,1750293049211,-490.0,0.00032876,18]
[366500825,1750293049221,-490.0,0.00032876,18]
[366500826,1750293049231,-500.0,0.00032876,18]
[366500827,1750293049242,-490.0,0.00032876,18]
[366500828,1750293049252,-534.84191222,0.00032876,18]
[366500829,1750293049262,-561.31,0.00032876,18]
[366500830,1750293049272,-490.0,0.00032876,18]
[366500831,1750293049282,-237.492836,0.00032876,18]
[366500832,1750293049292,-490.0,0.00032876,18]
[366500833,1750293049301,-551.50375394,0.00032876,18]
[366500834,1750293049311,-490.0,0.00032876,18]
[366500835,1750293049322,-490.0,0.00032876,18]
[366500836,1750293049332,-491.46898122,0.00032876,18]
[366500837,1750293049342,-496.41814028,0.00032876,18]
[366500838,1750293049351,-490.0,0.00032876,18]
[366500839,1750293049362,-496.95480267,0.00032876,18]
[366500840,1750293049372,-490.0,0.00032876,18]
[366500841,1750293049382,-490.0,0.00032876,18]
[366500842,1750293049393,-492.67876384,0.00032876,18]
[366500843,1750293049403,-741.35,0.00032876,18]
[366500844,1750293049414,-490.45946737,0.00032876,18]
[366500845,1750293049424,-587.92276564,0.00032876,18]
[366500846,1750293049435,-616.99,0.00032876,18]
[366500847,1750293049444,-490.0,0.00032876,18]
[366500848,1750293049454,-490.0,0.00032876,18]
[366500849,1750293049464,-490.0,0.00032876,18]
[366500850,1750293049474,-496.08771994,0.00032876,18]
[366500851,1750293049484,-490.0,0.00032876,18]
[366500852,1750293049495,-494.94557897,0.00032876,18]
[366500853,1750293049505,-363.29,0.00032876,18]
[366500854,1750293049515,-490.0,0.00032876,18]
[366500855,1750293049525,-490.0,0.00032876,18]
[366500856,1750293049535,-490.0,0.00032876,18]
[366500857,1750293049546,-151.0,0.00032876,7]
[366500858,1750293049556,-1070.39,0.00032876,18]
[366500859,1750293049566,-490.0,0.00032876,18]
[366500860,1750293049576,-490.0,0.00032876,18]
[366500861,1750293049586,-569.13,0.00032876,18]
[366500862,1750293049595,-490.0,0.00032876,18]
[366500863,1750293049606,-158.92664098,0.00032876,18]
[366500864,1750293049616,-490.0,0.00032876,18]
[366500865,1750293049626,-728.08,0.00032876,18]
[366500866,1750293049635,-490.0,0.00032876,18]
[366500867,1750293049645,-863.5,0.00032876,18]
[366500868,1750293049655,-490.95365884,0.00032876,18]
[366500869,1750293049664,-490.0,0.00032876,18]
[366500870,1750293049674,-151.0,0.00032876,7]
[366500871,1750293049685,-151.0,0.00032876,7]
[366500872,1750293049695,-151.0,0.00032876,7]
[366500873,1750293049710,-151.0,0.00032876,7]
[366500874,1750293049720,-707.24,0.00032876,18]
[366500875,1750293049730,-151.0,0.00032876,7]
[366500876,1750293049740,-490.0,0.00032876,18]
[366500877,1750293049750,-490.0,0.00032876,18]
[366500878,1750293049760,-490.0,0.00032876,18]
[366500879,1750293049771,-490.0,0.00032876,18]
[366500880,1750293049783,-490.0,0.00032876,18]
[366500881,1750293049793,-658.26,0.00032876,18]
[366500882,1750293049803,-1398.38,0.00032876,18]
[366500883,1750293049814,-490.0,0.00032876,18]
[366500884,1750293049823,-490.0,0.00032876,18]
[366500885,1750293049833,-523.48,0.00032876,18]
[366500886,1750293049843,-490.0,0.00032876,18]
[366500887,1750293049854,-151.0,0.00032876,7]
[366500888,1750293049864,-151.0,0.00032876,7]
[366500889,1750293049874,-500.00667706,0.00032876,18]
[366500890,1750293049885,-151.0,0.00032876,7]
[366500891,1750293049895,-151.0,0.00032876,7]
[366500892,1750293049906,-151.0,0.00032876,7]
[366500893,1750293049916,-151.0,0.00032876,7]
[366500894,1750293049926,-490.0,0.00032876,18]
[366500895,1750293049937,-490.0,0.00032876,18]
[366500896,1750293049947,-490.0,0.00032876,18]
[366500897,1750293049958,-490.0,0.00032876,18]
[366500898,1750293049968,-490.0,0.00032876,18]
[366500899,1750293049978,-642.68,0.00032876,18]
[366500900,1750293049988,-490.0,0.00032876,18]
[366500901,1750293049999,-492.67831106,0.00032876,18]
[366500902,1750293050008,-1352.44,0.00032876,18]
[366500903,1750293050018,-490.0,0.00032876,18]
[366500904,1750293050028,-490.0,0.00032876,18]
[366500905,1750293050038,-490.0,0.00032876,18]
[366500906,1750293050233,-490.0,0.00032876,18]
[366500907,1750293050243,-490.0,0.00032876,18]
[366500908,1750293050253,-1107.47,0.00032876,18]
[366500909,1750293050263,-490.0,0.00032876,18]
[366500910,1750293050272,-490.0,0.00032876,18]
[366500911,1750293050282,-490.0,0.00032876,18]
[366500912,1750293050291,-490.0,0.00032876,18]
[366500913,1750293050301,-490.0,0.00032876,18]
[366500914,1750293050311,-490.0,0.00032876,18]
[366500915,1750293050320,-490.0,0.00032876,18]
[366500916,1750293050331,-490.0,0.00032876,18]
[366500917,1750293050341,-956.97,0.00032876,18]
[366500918,1750293050350,-490.0,0.00032876,18]
[366500919,1750293050360,-490.0,0.00032876,18]
[366500920,1750293050370,-490.0,0.00032876,18]
[366500921,1750293050380,-490.0,0.00032876,18]
[366500922,1750293050389,-490.0,0.00032876,18]
[366500923,1750293050399,-490.0,0.00032876,18]
[366500924,1750293050410,-490.0,0.00032876,18]